fUST/lending_fUST_20250518
["ID","MTS","AMOUNT","RATE_DAILY","PERIOD"]
[361375096,1747525867352,-450.0,0.0001452,2]
[361375097,1747525867362,-450.0,0.0001452,2]
[361375098,1747525867374,-450.0,0.0001452,2]
[361375099,1747525867386,-450.0,0.0001452,2]
[361375100,1747525867397,-537.79,0.0001452,2]
[361375101,1747525867408,-450.0,0.0001452,2]
[361375102,1747525867419,-450.0,0.0001452,2]
[361375103,1747525867429,-450.0,0.0001452,2]
[361375104,1747525867438,-450.0,0.0001452,2]
[361375105,1747525867448,-439.6,0.0001452,2]
[361375106,1747525867458,-450.0,0.0001452,2]
[361375107,1747525867468,-279.6,0.0001452,2]
[361375108,1747525867479,-450.0,0.0001452,2]
[361375109,1747525867489,-524.88,0.0001452,2]
[361375110,1747525867499,-450.0,0.0001452,2]
[361375111,1747525867508,-450.0,0.0001452,2]
[361375112,1747525867518,-1767.68,0.0001452,2]
[361375113,1747525867529,-947.05,0.0001452,2]
[361375114,1747525867539,-1170.66,0.0001452,2]
[361375115,1747525867551,-450.0,0.0001452,2]
[361375116,1747525867560,-450.0,0.0001452,2]
[361375117,1747525867570,-885.64,0.0001452,2]
[361375118,1747525867580,-543.92,0.0001452,2]
[361375119,1747525867589,-450.0,0.0001452,2]
[361375120,1747525867599,-631.28,0.0001452,2]
[361375121,1747525867609,-450.0,0.0001452,2]
[361375122,1747525867620,-450.0,0.0001452,2]
[361375123,1747525867630,-677.12,0.0001452,2]
[361375124,1747525867639,-450.0,0.0001452,2]
[361375125,1747525867650,-450.0,0.0001452,2]
[361375126,1747525867661,-766.04,0.0001452,2]
[361375127,1747525867670,-450.0,0.0001452,2]
[361375128,1747525867682,-450.0,0.0001452,2]
[361375129,1747525867692,-450.0,0.0001452,2]
[361375130,1747525867702,-674.15,0.0001452,2]
[361375131,1747525867711,-450.0,0.0001452,2]
[361375132,1747525867721,-192.24,0.0001452,2]
[361375133,1747525867732,-1261.56,0.0001452,2]
[361375134,1747525867741,-3540.34,0.0001452,2]
[361375135,1747525867751,-450.0,0.0001452,2]
[361375136,1747525867760,-744.75,0.0001452,2]
[361375137,1747525867770,-450.0,0.0001452,2]
[361375138,1747525867779,-2808.51,0.0001452,2]
[361375139,1747525867794,-470.76,0.0001452,2]
[361375140,1747525867803,-520.0,0.0001452,2]
[361375141,1747525867812,-1897.55,0.0001452,2]
[361375142,1747525867822,-450.0,0.0001452,2]
[361375143,1747525867832,-579.52,0.0001452,2]
[361375144,1747525867841,-450.0,0.0001452,2]
[361375145,1747525867852,-450.0,0.0001452,2]
[361375146,1747525867865,-688.49,0.0001452,2]
[361375147,1747525867876,-450.0,0.0001452,2]
[361375148,1747525867886,-450.0,0.0001452,2]
[361375149,1747525867896,-450.0,0.0001452,2]
[361375150,1747525867908,-696.92,0.0001452,2]
[361375151,1747525867918,-817.56,0.0001452,2]
[361375152,1747525867928,-1280.81,0.0001452,2]
[361375153,1747525867940,-1192.0,0.0001452,2]
[361375154,1747525867952,-453.84,0.0001452,2]
[361375155,1747525867962,-1527.96,0.0001452,2]
[361375156,1747525867974,-1187.15,0.0001452,2]
[361375157,1747525867983,-177.36,0.0001452,2]
[361375158,1747525867993,-450.0,0.0001452,2]
[361375159,1747525868004,-688.42,0.0001452,2]
[361375160,1747525868013,-450.0,0.0001452,2]
[361375161,1747525868025,-1964.23,0.0001452,2]
[361375162,1747525868036,-450.0,0.0001452,2]
[361375163,1747525868046,-450.0,0.0001452,2]
[361375164,1747525868056,-450.0,0.0001452,2]
[361375165,1747525868066,-450.0,0.0001452,2]
[361375166,1747525868075,-500.0,0.0001453,2]
[361375167,1747525868084,-323.2360812,0.00014548,2]
[361375168,1747525868096,-310.0591789,0.00014548,2]
[361375169,1747525868108,-500.0,0.00014589,2]
[361375170,1747525868117,-500.0,0.00014589,2]
[361375171,1747525868128,-154.243191,0.00014657,2]
[361375172,1747525868139,-722.16,0.00014657,2]
[361375173,1747525868151,-595.8,0.00014657,2]
[361375174,1747525868162,-450.0,0.00014657,2]
[361375175,1747525868172,-151.0,0.00014657,2]
[361375176,1747525868183,-450.0,0.00014657,2]
[361375177,1747525868278,-450.0,0.00014657,2]
[361375178,1747525868290,-450.0,0.00014657,2]
[361375179,1747525868299,-450.0,0.00014657,2]
[361375180,1747525868309,-537.79,0.00014657,2]
[361375181,1747525868319,-450.0,0.00014657,2]
[361375182,1747525868328,-450.0,0.00014657,2]
[361375183,1747525868338,-450.0,0.00014657,2]
[361375184,1747525868347,-450.0,0.00014657,2]
[361375185,1747525868356,-450.0,0.00014657,2]
[361375186,1747525868365,-450.0,0.00014657,2]
[361375187,1747525868374,-450.0,0.00014657,2]
[361375188,1747525868383,-450.0,0.00014657,2]
[361375189,1747525868392,-1767.68,0.00014657,2]
[361375190,1747525868402,-947.05,0.00014657,2]
[361375191,1747525868411,-1170.66,0.00014657,2]
[361375192,1747525868420,-450.0,0.00014657,2]
[361375193,1747525868429,-450.0,0.00014657,2]
[361375194,1747525868439,-885.64,0.00014657,2]
[361375195,1747525868448,-450.0,0.00014657,2]
[361375196,1747525868457,-631.28,0.00014657,2]
[361375197,1747525868466,-450.0,0.00014657,2]
[361375198,1747525868476,-450.0,0.00014657,2]
[361375199,1747525868485,-677.12,0.00014657,2]
[361375200,1747525868494,-450.0,0.00014657,2]
[361375201,1747525868503,-450.0,0.00014657,2]
[361375202,1747525868513,-766.04,0.00014657,2]
[361375203,1747525868522,-450.0,0.00014657,2]
[361375204,1747525868532,-450.0,0.00014657,2]
[361375205,1747525868541,-450.0,0.00014657,2]
[361375206,1747525868550,-674.15,0.00014657,2]
[361375207,1747525868559,-450.0,0.00014657,2]
[361375208,1747525868569,-1261.56,0.00014657,2]
[361375209,1747525868578,-3540.34,0.00014657,2]
[361375210,1747525868588,-275.0,0.00014657,2]
[361375211,1747525868597,-744.75,0.00014657,2]
[361375212,1747525868608,-450.0,0.00014657,2]
[361375213,1747525868617,-2808.51,0.00014657,2]
[361375214,1747525868627,-520.0,0.00014657,2]
[361375215,1747525868637,-1897.55,0.00014657,2]
[361375216,1747525868647,-450.0,0.00014657,2]
[361375217,1747525868656,-579.52,0.00014657,2]
[361375218,1747525868666,-450.0,0.00014657,2]
[361375219,1747525868675,-450.0,0.00014657,2]
[361375220,1747525868684,-688.49,0.00014657,2]
[361375221,1747525868694,-450.0,0.00014657,2]
[361375222,1747525868703,-450.0,0.00014657,2]
[361375223,1747525868712,-271.56,0.00014657,2]
[361375224,1747525868723,-696.92,0.00014657,2]
[361375225,1747525868732,-817.56,0.00014657,2]
[361375226,1747525868742,-1280.81,0.00014657,2]
[361375227,1747525868752,-1192.0,0.00014657,2]
[361375228,1747525868762,-1527.96,0.00014657,2]
[361375229,1747525868772,-1187.15,0.00014657,2]
[361375230,1747525868784,-450.0,0.00014657,2]
[361375231,1747525868800,-688.42,0.00014657,2]
[361375232,1747525868810,-450.0,0.00014657,2]
[361375233,1747525868820,-1964.23,0.00014657,2]
[361375234,1747525868831,-450.0,0.00014657,2]
[361375235,1747525868841,-450.0,0.00014657,2]
[361375236,1747525868850,-450.0,0.00014657,2]
[361375237,1747525868862,-450.0,0.00014657,2]
[361375238,1747525868871,-4464.34434268,0.00014728,2]
[361375239,1747525868882,-151.0,0.00014794,2]
[361375240,1747525868892,-722.16,0.00014794,2]
[361375241,1747525868902,-595.8,0.00014794,2]
[361375242,1747525868912,-450.0,0.00014794,2]
[361375243,1747525868922,-151.0,0.00014794,2]
[361375244,1747525868933,-249.88,0.00014794,2]
[361375245,1747525868942,-450.0,0.00014794,2]
[361375246,1747525868952,-450.0,0.00014794,2]
[361375247,1747525868962,-356.6,0.00014794,2]
[361375248,1747525868972,-537.79,0.00014794,2]
[361375249,1747525868981,-450.0,0.00014794,2]
[361375250,1747525868991,-450.0,0.00014794,2]
[361375251,1747525869000,-450.0,0.00014794,2]
[361375252,1747525869010,-520.16,0.00014794,2]
[361375253,1747525869019,-253.04,0.00014794,2]
[361375254,1747525869028,-450.0,0.00014794,2]
[361375255,1747525869037,-450.0,0.00014794,2]
[361375256,1747525869046,-577.96,0.00014794,2]
[361375257,1747525869056,-1767.68,0.00014794,2]
[361375258,1747525869065,-947.05,0.00014794,2]
[361375259,1747525869075,-1170.66,0.00014794,2]
[361375260,1747525869084,-338.2,0.00014794,2]
[361375261,1747525869093,-450.0,0.00014794,2]
[361375262,1747525869103,-885.64,0.00014794,2]
[361375263,1747525869112,-450.0,0.00014794,2]
[361375264,1747525869122,-631.28,0.00014794,2]
[361375265,1747525869132,-450.0,0.00014794,2]
[361375266,1747525869141,-450.0,0.00014794,2]
[361375267,1747525869151,-677.12,0.00014794,2]
[361375268,1747525869160,-450.0,0.00014794,2]
[361375269,1747525869170,-450.0,0.00014794,2]
[361375270,1747525869179,-766.04,0.00014794,2]
[361375271,1747525869188,-450.0,0.00014794,2]
[361375272,1747525869198,-450.0,0.00014794,2]
[361375273,1747525869207,-450.0,0.00014794,2]
[361375274,1747525869216,-674.15,0.00014794,2]
[361375275,1747525869225,-450.0,0.00014794,2]
[361375276,1747525869234,-1261.56,0.00014794,2]
[361375277,1747525869243,-3540.34,0.00014794,2]
[361375278,1747525869253,-744.75,0.00014794,2]
[361375279,1747525869262,-450.0,0.00014794,2]
[361375280,1747525869272,-2808.51,0.00014794,2]
[361375281,1747525869281,-520.0,0.00014794,2]
[361375282,1747525869291,-1897.55,0.00014794,2]
[361375283,1747525869300,-450.0,0.00014794,2]
[361375284,1747525869309,-579.52,0.00014794,2]
[361375285,1747525869319,-450.0,0.00014794,2]
[361375286,1747525869329,-450.0,0.00014794,2]
[361375287,1747525869339,-688.49,0.00014794,2]
[361375288,1747525869349,-450.0,0.00014794,2]
[361375289,1747525869358,-450.0,0.00014794,2]
[361375290,1747525869368,-696.92,0.00014794,2]
[361375291,1747525869377,-817.56,0.00014794,2]
[361375292,1747525869386,-1280.81,0.00014794,2]
[361375293,1747525869396,-1192.0,0.00014794,2]
[361375294,1747525869405,-1527.96,0.00014794,2]
[361375295,1747525869415,-1187.15,0.00014794,2]
[361375296,1747525869424,-450.0,0.00014794,2]
[361375297,1747525869434,-688.42,0.00014794,2]
[361375298,1747525869443,-450.0,0.00014794,2]
[361375299,1747525869452,-1964.23,0.00014794,2]
[361375300,1747525869461,-450.0,0.00014794,2]
[361375301,1747525869471,-450.0,0.00014794,2]
[361375302,1747525869480,-450.0,0.00014794,2]
[361375303,1747525869490,-450.0,0.00014794,2]
[361375304,1747525869500,-313.0,0.00014847,2]
[361375305,1747525869509,-165.99443591,0.000149,2]
[361375306,1747525869518,-765.0,0.00014917,2]
[361375307,1747525869528,-722.16,0.00014931,2]
[361375308,1747525869537,-595.8,0.00014931,2]
[361375309,1747525869546,-546.45,0.00014931,2]
[361375310,1747525869555,-450.0,0.00014931,2]
[361375311,1747525869565,-515.58912911,0.00014931,2]
[361375312,1747525869574,-537.79,0.00014931,2]
[361375313,1747525869583,-450.0,0.00014931,2]
[361375314,1747525869593,-450.0,0.00014931,2]
[361375315,1747525869602,-450.0,0.00014931,2]
[361375316,1747525869612,-450.0,0.00014931,2]
[361375317,1747525869621,-450.0,0.00014931,2]
[361375318,1747525869631,-1767.68,0.00014931,2]
[361375319,1747525869640,-947.05,0.00014931,2]
[361375320,1747525869650,-1170.66,0.00014931,2]
[361375321,1747525869659,-450.0,0.00014931,2]
[361375322,1747525869669,-885.64,0.00014931,2]
[361375323,1747525869678,-450.0,0.00014931,2]
[361375324,1747525869687,-631.28,0.00014931,2]
[361375325,1747525869697,-450.0,0.00014931,2]
[361375326,1747525869793,-450.0,0.00014931,2]
[361375327,1747525869803,-677.12,0.00014931,2]
[361375328,1747525869812,-450.0,0.00014931,2]
[361375329,1747525869822,-450.0,0.00014931,2]
[361375330,1747525869832,-766.04,0.00014931,2]
[361375331,1747525869841,-450.0,0.00014931,2]
[361375332,1747525869850,-450.0,0.00014931,2]
[361375333,1747525869859,-450.0,0.00014931,2]
[361375334,1747525869868,-674.15,0.00014931,2]
[361375335,1747525869877,-251.76,0.00014931,2]
[361375336,1747525869886,-1261.56,0.00014931,2]
[361375337,1747525869895,-3540.34,0.00014931,2]
[361375338,1747525869905,-744.75,0.00014931,2]
[361375339,1747525869914,-450.0,0.00014931,2]
[361375340,1747525869924,-2808.51,0.00014931,2]
[361375341,1747525869933,-520.0,0.00014931,2]
[361375342,1747525869943,-1897.55,0.00014931,2]
[361375343,1747525869952,-533.2,0.00014931,2]
[361375344,1747525869962,-579.52,0.00014931,2]
[361375345,1747525869971,-450.0,0.00014931,2]
[361375346,1747525869980,-450.0,0.00014931,2]
[361375347,1747525869989,-688.49,0.00014931,2]
[361375348,1747525869998,-450.0,0.00014931,2]
[361375349,1747525870008,-450.0,0.00014931,2]
[361375350,1747525870017,-696.92,0.00014931,2]
[361375351,1747525870026,-817.56,0.00014931,2]
[361375352,1747525870036,-1280.81,0.00014931,2]
[361375353,1747525870045,-1192.0,0.00014931,2]
[361375354,1747525870054,-1527.96,0.00014931,2]
[361375355,1747525870064,-1187.15,0.00014931,2]
[361375356,1747525870073,-450.0,0.00014931,2]
[361375357,1747525870082,-688.42,0.00014931,2]
[361375358,1747525870093,-270.84,0.00014931,2]
[361375359,1747525870104,-1964.23,0.00014931,2]
[361375360,1747525870116,-577.12,0.00014931,2]
[361375361,1747525870127,-450.0,0.00014931,2]
[361375362,1747525870137,-450.0,0.00014931,2]
[361375363,1747525870147,-450.0,0.00014931,2]
[361375364,1747525870156,-151.0,0.00015,2]
[361375365,1747525870168,-160.0,0.00015,2]
[361375366,1747525870178,-722.16,0.00015068,2]
[361375367,1747525870188,-595.8,0.00015068,2]
[361375368,1747525870197,-450.0,0.00015068,2]
[361375369,1747525870206,-537.79,0.00015068,2]
[361375370,1747525870216,-450.0,0.00015068,2]
[361375371,1747525870225,-410.76,0.00015068,2]
[361375372,1747525870235,-450.0,0.00015068,2]
[361375373,1747525870245,-450.0,0.00015068,2]
[361375374,1747525870254,-235.44,0.00015068,2]
[361375375,1747525870264,-1767.68,0.00015068,2]
[361375376,1747525870274,-947.05,0.00015068,2]
[361375377,1747525870283,-1170.66,0.00015068,2]
[361375378,1747525870293,-450.0,0.00015068,2]
[361375379,1747525870303,-885.64,0.00015068,2]
[361375380,1747525870312,-160.6,0.00015068,2]
[361375381,1747525870321,-631.28,0.00015068,2]
[361375382,1747525870331,-450.0,0.00015068,2]
[361375383,1747525870340,-450.0,0.00015068,2]
[361375384,1747525870350,-677.12,0.00015068,2]
[361375385,1747525870359,-450.0,0.00015068,2]
[361375386,1747525870369,-450.0,0.00015068,2]
[361375387,1747525870378,-766.04,0.00015068,2]
[361375388,1747525870388,-420.36,0.00015068,2]
[361375389,1747525870398,-450.0,0.00015068,2]
[361375390,1747525870407,-450.0,0.00015068,2]
[361375391,1747525870416,-674.15,0.00015068,2]
[361375392,1747525870426,-1261.56,0.00015068,2]
[361375393,1747525870435,-3540.34,0.00015068,2]
[361375394,1747525870446,-563.96,0.00015068,2]
[361375395,1747525870456,-2808.51,0.00015068,2]
[361375396,1747525870466,-520.0,0.00015068,2]
[361375397,1747525870476,-1897.55,0.00015068,2]
[361375398,1747525870486,-579.52,0.00015068,2]
[361375399,1747525870496,-450.0,0.00015068,2]
[361375400,1747525870506,-450.0,0.00015068,2]
[361375401,1747525870515,-688.49,0.00015068,2]
[361375402,1747525870525,-450.0,0.00015068,2]
[361375403,1747525870535,-450.0,0.00015068,2]
[361375404,1747525870544,-696.92,0.00015068,2]
[361375405,1747525870554,-817.56,0.00015068,2]
[361375406,1747525870563,-1280.81,0.00015068,2]
[361375407,1747525870572,-1192.0,0.00015068,2]
[361375408,1747525870581,-1527.96,0.00015068,2]
[361375409,1747525870591,-1187.15,0.00015068,2]
[361375410,1747525870600,-450.0,0.00015068,2]
[361375411,1747525870610,-688.42,0.00015068,2]
[361375412,1747525870619,-1964.23,0.00015068,2]
[361375413,1747525870629,-450.0,0.00015068,2]
[361375414,1747525870639,-450.0,0.00015068,2]
[361375415,1747525870648,-450.0,0.00015068,2]
[361375416,1747525870658,-546.0,0.00015082,2]
[361375417,1747525870668,-245.799,0.00015082,2]
[361375418,1747525870679,-404.0,0.00015082,2]
[361375419,1747525870688,-250.0,0.00015082,2]
[361375420,1747525870697,-235.055,0.00015082,2]
[361375421,1747525870707,-151.327,0.00015082,2]
[361375422,1747525870718,-204.88,0.00015082,2]
[361375423,1747525870727,-150.0,0.00015095,2]
[361375424,1747525870737,-4464.34434268,0.00015141,2]
[361375425,1747525870747,-151.0,0.000152,2]
[361375426,1747525870756,-722.16,0.00015205,2]
[361375427,1747525870765,-595.8,0.00015205,2]
[361375428,1747525870774,-450.0,0.00015205,2]
[361375429,1747525870787,-537.79,0.00015205,2]
[361375430,1747525870796,-309.08,0.00015205,2]
[361375431,1747525870805,-450.0,0.00015205,2]
[361375432,1747525870815,-450.0,0.00015205,2]
[361375433,1747525870824,-1767.68,0.00015205,2]
[361375434,1747525870835,-947.05,0.00015205,2]
[361375435,1747525870844,-1170.66,0.00015205,2]
[361375436,1747525870853,-450.0,0.00015205,2]
[361375437,1747525870864,-885.64,0.00015205,2]
[361375438,1747525870874,-631.28,0.00015205,2]
[361375439,1747525870884,-450.0,0.00015205,2]
[361375440,1747525870894,-450.0,0.00015205,2]
[361375441,1747525870904,-677.12,0.00015205,2]
[361375442,1747525870913,-450.0,0.00015205,2]
[361375443,1747525870923,-450.0,0.00015205,2]
[361375444,1747525870932,-766.04,0.00015205,2]
[361375445,1747525870942,-450.0,0.00015205,2]
[361375446,1747525870952,-450.0,0.00015205,2]
[361375447,1747525870962,-674.15,0.00015205,2]
[361375448,1747525870971,-1261.56,0.00015205,2]
[361375449,1747525870980,-3540.34,0.00015205,2]
[361375450,1747525870990,-2808.51,0.00015205,2]
[361375451,1747525871000,-520.0,0.00015205,2]
[361375452,1747525871009,-1897.55,0.00015205,2]
[361375453,1747525871019,-579.52,0.00015205,2]
[361375454,1747525871028,-450.0,0.00015205,2]
[361375455,1747525871038,-450.0,0.00015205,2]
[361375456,1747525871047,-688.49,0.00015205,2]
[361375457,1747525871057,-450.0,0.00015205,2]
[361375458,1747525871066,-242.32,0.00015205,2]
[361375459,1747525871076,-696.92,0.00015205,2]
[361375460,1747525871085,-817.56,0.00015205,2]
[361375461,1747525871095,-1280.81,0.00015205,2]
[361375462,1747525871103,-1192.0,0.00015205,2]
[361375463,1747525871194,-1527.96,0.00015205,2]
[361375464,1747525871204,-1187.15,0.00015205,2]
[361375465,1747525871215,-450.0,0.00015205,2]
[361375466,1747525871225,-688.42,0.00015205,2]
[361375467,1747525871235,-1964.23,0.00015205,2]
[361375468,1747525871245,-338.84,0.00015205,2]
[361375469,1747525871255,-450.0,0.00015205,2]
[361375470,1747525871266,-450.0,0.00015205,2]
[361375471,1747525871278,-722.16,0.00015342,2]
[361375472,1747525871288,-595.8,0.00015342,2]
[361375473,1747525871300,-450.0,0.00015342,2]
[361375474,1747525871313,-537.79,0.00015342,2]
[361375475,1747525871324,-450.0,0.00015342,2]
[361375476,1747525871334,-450.0,0.00015342,2]
[361375477,1747525871344,-1767.68,0.00015342,2]
[361375478,1747525871355,-947.05,0.00015342,2]
[361375479,1747525871366,-1170.66,0.00015342,2]
[361375480,1747525871375,-450.0,0.00015342,2]
[361375481,1747525871386,-885.64,0.00015342,2]
[361375482,1747525871396,-631.28,0.00015342,2]
[361375483,1747525871407,-450.0,0.00015342,2]
[361375484,1747525871416,-450.0,0.00015342,2]
[361375485,1747525871426,-677.12,0.00015342,2]
[361375486,1747525871435,-450.0,0.00015342,2]
[361375487,1747525871445,-526.32,0.00015342,2]
[361375488,1747525871455,-766.04,0.00015342,2]
[361375489,1747525871464,-470.24,0.00015342,2]
[361375490,1747525871473,-450.0,0.00015342,2]
[361375491,1747525871483,-674.15,0.00015342,2]
[361375492,1747525871491,-1261.56,0.00015342,2]
[361375493,1747525871501,-3540.34,0.00015342,2]
[361375494,1747525871510,-2808.51,0.00015342,2]
[361375495,1747525871520,-520.0,0.00015342,2]
[361375496,1747525871529,-1897.55,0.00015342,2]
[361375497,1747525871539,-579.52,0.00015342,2]
[361375498,1747525871548,-450.0,0.00015342,2]
[361375499,1747525871557,-450.0,0.00015342,2]
[361375500,1747525871567,-688.49,0.00015342,2]
[361375501,1747525871577,-450.0,0.00015342,2]
[361375502,1747525871586,-696.92,0.00015342,2]
[361375503,1747525871596,-817.56,0.00015342,2]
[361375504,1747525871605,-1280.81,0.00015342,2]
[361375505,1747525871615,-1192.0,0.00015342,2]
[361375506,1747525871626,-1527.96,0.00015342,2]
[361375507,1747525871643,-1187.15,0.00015342,2]
[361375508,1747525871656,-450.0,0.00015342,2]
[361375509,1747525871670,-688.42,0.00015342,2]
[361375510,1747525871681,-1964.23,0.00015342,2]
[361375511,1747525871692,-450.0,0.00015342,2]
[361375512,1747525871702,-471.0,0.00015342,2]
[361375513,1747525871712,-11006.17954037,0.0001539,2]
[361375514,1747525871722,-151.0,0.00015479,2]
[361375515,1747525871731,-722.16,0.00015479,2]
[361375516,1747525871740,-595.8,0.00015479,2]
[361375517,1747525871750,-450.0,0.00015479,2]
[361375518,1747525871759,-537.79,0.00015479,2]
[361375519,1747525871769,-360.3,0.00015479,2]
[361375520,1747525871778,-450.0,0.00015479,2]
[361375521,1747525871791,-1767.68,0.00015479,2]
[361375522,1747525871800,-947.05,0.00015479,2]
[361375523,1747525871809,-1170.66,0.00015479,2]
[361375524,1747525871819,-450.0,0.00015479,2]
[361375525,1747525871828,-885.64,0.00015479,2]
[361375526,1747525871852,-631.28,0.00015479,2]
[361375527,1747525871872,-450.0,0.00015479,2]
[361375528,1747525871893,-450.0,0.00015479,2]
[361375529,1747525871913,-677.12,0.00015479,2]
[361375530,1747525871931,-450.0,0.00015479,2]
[361375531,1747525871947,-766.04,0.00015479,2]
[361375532,1747525871967,-450.0,0.00015479,2]
[361375533,1747525871983,-674.15,0.00015479,2]
[361375534,1747525872000,-1261.56,0.00015479,2]
[361375535,1747525872018,-3540.34,0.00015479,2]
[361375536,1747525872041,-2808.51,0.00015479,2]
[361375537,1747525872054,-520.0,0.00015479,2]
[361375538,1747525872073,-1897.55,0.00015479,2]
[361375539,1747525872086,-579.52,0.00015479,2]
[361375540,1747525872102,-450.0,0.00015479,2]
[361375541,1747525872116,-450.0,0.00015479,2]
[361375542,1747525872132,-688.49,0.00015479,2]
[361375543,1747525872148,-514.88,0.00015479,2]
[361375544,1747525872162,-696.92,0.00015479,2]
[361375545,1747525872176,-817.56,0.00015479,2]
[361375546,1747525872190,-1280.81,0.00015479,2]
[361375547,1747525872205,-1192.0,0.00015479,2]
[361375548,1747525872219,-1527.96,0.00015479,2]
[361375549,1747525872236,-1187.15,0.00015479,2]
[361375550,1747525872252,-450.0,0.00015479,2]
[361375551,1747525872266,-688.42,0.00015479,2]
[361375552,1747525872283,-1964.23,0.00015479,2]
[361375553,1747525872302,-450.0,0.00015479,2]
[361375554,1747525872318,-151.0,0.000155,2]
[361375555,1747525872334,-4464.34434268,0.00015555,2]
[361375556,1747525872349,-238.473,0.00015567,2]
[361375557,1747525872364,-722.16,0.00015616,2]
[361375558,1747525872380,-595.8,0.00015616,2]
[361375559,1747525872396,-450.0,0.00015616,2]
[361375560,1747525872409,-537.79,0.00015616,2]
[361375561,1747525872423,-450.0,0.00015616,2]
[361375562,1747525872437,-1767.68,0.00015616,2]
[361375563,1747525872451,-947.05,0.00015616,2]
[361375564,1747525872465,-1170.66,0.00015616,2]
[361375565,1747525872478,-565.31881369,0.00015616,2]
[361375566,1747525872494,-885.64,0.00015616,2]
[361375567,1747525872508,-631.28,0.00015616,2]
[361375568,1747525872524,-552.04,0.00015616,2]
[361375569,1747525872538,-450.0,0.00015616,2]
[361375570,1747525872553,-677.12,0.00015616,2]
[361375571,1747525872569,-450.0,0.00015616,2]
[361375572,1747525872583,-766.04,0.00015616,2]
[361375573,1747525872597,-450.0,0.00015616,2]
[361375574,1747525872612,-674.15,0.00015616,2]
[361375575,1747525872626,-1261.56,0.00015616,2]
[361375576,1747525872640,-3540.34,0.00015616,2]
[361375577,1747525872657,-2808.51,0.00015616,2]
[361375578,1747525872672,-520.0,0.00015616,2]
[361375579,1747525872689,-1897.55,0.00015616,2]
[361375580,1747525872704,-579.52,0.00015616,2]
[361375581,1747525872719,-450.0,0.00015616,2]
[361375582,1747525872734,-450.0,0.00015616,2]
[361375583,1747525872750,-688.49,0.00015616,2]
[361375584,1747525872762,-696.92,0.00015616,2]
[361375585,1747525872772,-817.56,0.00015616,2]
[361375586,1747525872783,-1280.81,0.00015616,2]
[361375587,1747525872797,-1192.0,0.00015616,2]
[361375588,1747525872809,-860.68975488,0.00015616,2]
[361375589,1747525873222,-667.27024512,0.00015616,2]
[361375590,1747525873232,-1187.15,0.00015616,2]
[361375591,1747525873241,-234.88,0.00015616,2]
[361375592,1747525873251,-688.42,0.00015616,2]
[361375593,1747525873261,-1964.23,0.00015616,2]
[361375594,1747525873270,-450.0,0.00015616,2]
[361375595,1747525873279,-151.0,0.000157,2]